fUSD/lending_fUSD_20250630
["ID","MTS","AMOUNT","RATE_DAILY","PERIOD"]
[368626851,1751251107053,-490.0,0.00018629,2]
[368626852,1751251107078,-2702.08,0.00018629,2]
[368626853,1751251107103,-2871.02,0.00018629,2]
[368626854,1751251107128,-562.56,0.00018629,2]
[368626855,1751251107151,-490.0,0.00018629,2]
[368626856,1751251107174,-3466.06,0.00018629,2]
[368626857,1751251107204,-606.17,0.00018629,2]
[368626858,1751251107228,-2414.62,0.00018629,2]
[368626859,1751251107252,-490.0,0.00018629,2]
[368626860,1751251107275,-490.0,0.00018629,2]
[368626861,1751251107299,-2462.6,0.00018629,2]
[368626862,1751251107324,-3004.35,0.00018629,2]
[368626863,1751251107347,-490.0,0.00018629,2]
[368626864,1751251107371,-1039.11,0.00018629,2]
[368626865,1751251107396,-1234.13,0.00018629,2]
[368626866,1751251107420,-490.0,0.00018629,2]
[368626867,1751251107443,-490.0,0.00018629,2]
[368626868,1751251107466,-13926.39,0.00018629,2]
[368626869,1751251107492,-1467.71,0.00018629,2]
[368626870,1751251107515,-490.0,0.00018629,2]
[368626871,1751251107540,-490.0,0.00018629,2]
[368626872,1751251107566,-490.0,0.0001863,2]
[368626873,1751251107590,-490.0,0.0001863,2]
[368626874,1751251107615,-578.38,0.0001863,2]
[368626875,1751251107640,-604.77,0.0001863,2]
[368626876,1751251107664,-2514.47,0.0001863,2]
[368626877,1751251107688,-1411.11,0.0001863,2]
[368626878,1751251107712,-490.0,0.0001863,2]
[368626879,1751251107741,-1238.93,0.0001863,2]
[368626880,1751251107766,-490.0,0.0001863,2]
[368626881,1751251107790,-490.0,0.0001863,2]
[368626882,1751251107813,-569.46,0.0001863,2]
[368626883,1751251107836,-490.0,0.0001863,2]
[368626884,1751251107860,-621.77,0.0001863,2]
[368626885,1751251107883,-890.7,0.0001863,2]
[368626886,1751251107906,-746.6,0.0001863,2]
[368626887,1751251107930,-1222.93,0.0001863,2]
[368626888,1751251107953,-866.13,0.0001863,2]
[368626889,1751251107977,-500.78,0.0001863,2]
[368626890,1751251108001,-970.16,0.0001863,2]
[368626891,1751251108024,-490.0,0.0001863,2]
[368626892,1751251108046,-495.01,0.0001863,2]
[368626893,1751251108069,-915.36,0.0001863,2]
[368626894,1751251108094,-2237.12,0.0001863,2]
[368626895,1751251108118,-1077.35,0.0001863,2]
[368626896,1751251108143,-490.0,0.0001863,2]
[368626897,1751251108167,-1121.18,0.0001863,2]
[368626898,1751251108199,-490.0,0.0001863,2]
[368626899,1751251108223,-1591.21,0.0001863,2]
[368626900,1751251108247,-490.0,0.0001863,2]
[368626901,1751251108272,-532.55,0.0001863,2]
[368626902,1751251108293,-490.0,0.0001863,2]
[368626903,1751251108318,-3079.16,0.0001863,2]
[368626904,1751251108342,-1802.56,0.0001863,2]
[368626905,1751251108366,-490.0,0.0001863,2]
[368626906,1751251108391,-888.04,0.0001863,2]
[368626907,1751251108415,-490.0,0.0001863,2]
[368626908,1751251108683,-659.16,0.0001863,2]
[368626909,1751251108708,-490.0,0.0001863,2]
[368626910,1751251108732,-1370.37,0.0001863,2]
[368626911,1751251108756,-1258.68,0.0001863,2]
[368626912,1751251108780,-490.0,0.0001863,2]
[368626913,1751251108804,-490.0,0.0001863,2]
[368626914,1751251108827,-490.0,0.0001863,2]
[368626915,1751251108851,-490.0,0.0001863,2]
[368626916,1751251108874,-1958.31,0.0001863,2]
[368626917,1751251108898,-490.0,0.0001863,2]
[368626918,1751251108922,-623.6,0.0001863,2]
[368626919,1751251108946,-490.0,0.0001863,2]
[368626920,1751251108969,-519.66,0.0001863,2]
[368626921,1751251108994,-1471.93,0.0001863,2]
[368626922,1751251109017,-490.0,0.0001863,2]
[368626923,1751251109041,-993.62,0.0001863,2]
[368626924,1751251109064,-610.25692129,0.0001863,2]
[368626925,1751251109088,-1314.06,0.0001863,2]
[368626926,1751251109111,-553.83,0.0001863,2]
[368626927,1751251109134,-791.77,0.0001863,2]
[368626928,1751251109158,-1863.04,0.0001863,2]
[368626929,1751251109182,-490.0,0.0001863,2]
[368626930,1751251109209,-1200.57,0.0001863,2]
[368626931,1751251109236,-1379.76,0.0001863,2]
[368626932,1751251109261,-1391.49,0.0001863,2]
[368626933,1751251109284,-490.0,0.0001863,2]
[368626934,1751251109307,-619.3,0.0001863,2]
[368626935,1751251109332,-3925.31,0.0001863,2]
[368626936,1751251109356,-490.0,0.0001863,2]
[368626937,1751251109379,-490.0,0.0001863,2]
[368626938,1751251109404,-1246.48,0.0001863,2]
[368626939,1751251109429,-2224.29,0.0001863,2]
[368626940,1751251109452,-490.0,0.0001863,2]
[368626941,1751251109477,-635.32,0.0001863,2]
[368626942,1751251109502,-490.0,0.0001863,2]
[368626943,1751251109527,-490.0,0.0001863,2]
[368626944,1751251109551,-545.23,0.0001863,2]
[368626945,1751251109575,-490.0,0.0001863,2]
[368626946,1751251109599,-1436.89,0.0001863,2]
[368626947,1751251109624,-2107.76,0.0001863,2]
[368626948,1751251109647,-490.0,0.0001863,2]
[368626949,1751251109670,-490.0,0.0001863,2]
[368626950,1751251109694,-490.0,0.0001863,2]
[368626951,1751251109718,-3666.48,0.0001863,2]
[368626952,1751251109740,-490.0,0.0001863,2]
[368626953,1751251109766,-566.44,0.0001863,2]
[368626954,1751251109793,-2835.83,0.0001863,2]
[368626955,1751251109819,-490.0,0.0001863,2]
[368626956,1751251109844,-3081.38,0.0001863,2]
[368626957,1751251109869,-490.0,0.0001863,2]
[368626958,1751251109894,-490.0,0.0001863,2]
[368626959,1751251109919,-490.0,0.0001863,2]
[368626960,1751251109943,-490.0,0.0001863,2]
[368626961,1751251109967,-490.69338526,0.0001863,2]
[368626962,1751251109991,-713.24,0.0001863,2]
[368626963,1751251110016,-1354.58,0.0001863,2]
[368626964,1751251110040,-490.0,0.0001863,2]
[368626965,1751251110064,-490.0,0.0001863,2]
[368626966,1751251110089,-5101.21,0.0001863,2]
[368626967,1751251110112,-552.5,0.0001863,2]
[368626968,1751251110135,-490.0,0.0001863,2]
[368626969,1751251110157,-490.0,0.0001863,2]
[368626970,1751251110180,-490.0,0.0001863,2]
[368626971,1751251110208,-1356.57,0.0001863,2]
[368626972,1751251110233,-309.09,0.0001863,2]
[368626973,1751251110257,-490.0,0.0001863,2]
[368626974,1751251110285,-151.0,0.0001863,2]
[368626975,1751251110309,-151.0,0.0001863,2]
[368626976,1751251110334,-151.0,0.0001863,2]
[368626977,1751251110359,-493.70810888,0.0001863,2]
[368626978,1751251110383,-490.0,0.0001863,2]
[368626979,1751251110409,-490.0,0.0001863,2]
[368626980,1751251110434,-1523.12,0.0001863,2]
[368626981,1751251110459,-1328.75,0.0001863,2]
[368626982,1751251110483,-490.0,0.0001863,2]
[368626983,1751251110507,-575.20849,0.0001863,2]
[368626984,1751251110530,-575.20849,0.0001863,2]
[368626985,1751251110554,-490.0,0.0001863,2]
[368626986,1751251110579,-575.20849,0.0001863,2]
[368626987,1751251110604,-575.20849,0.0001863,2]
[368626988,1751251110627,-151.0,0.0001863,2]
[368626989,1751251110651,-490.0,0.0001863,2]
[368626990,1751251110675,-151.0,0.0001863,2]
[368626991,1751251110698,-490.0,0.0001863,2]
[368626992,1751251110722,-3248.76,0.0001863,2]
[368626993,1751251110748,-490.0,0.0001863,2]
[368626994,1751251110773,-2394.33,0.0001863,2]
[368626995,1751251110797,-490.0,0.0001863,2]
[368626996,1751251110820,-3762.22,0.0001863,2]
[368626997,1751251110843,-494.4,0.0001863,2]
[368626998,1751251110867,-490.0,0.0001863,2]
[368626999,1751251110891,-490.0,0.0001863,2]
[368627000,1751251110915,-490.0,0.0001863,2]
[368627001,1751251110939,-524.17333086,0.0001863,2]
[368627002,1751251110964,-185.460005,0.0001863,2]
[368627003,1751251110989,-490.0,0.0001863,2]
[368627004,1751251111014,-1276.08,0.0001863,2]
[368627005,1751251111036,-490.0,0.0001863,2]
[368627006,1751251111061,-588.25,0.0001863,2]
[368627007,1751251111086,-490.0,0.0001863,2]
[368627008,1751251111111,-490.0,0.0001863,2]
[368627009,1751251111135,-1183.07,0.0001863,2]
[368627010,1751251111161,-1290.93,0.0001863,2]
[368627011,1751251111462,-1265.76,0.0001863,2]
[368627012,1751251111491,-608.16,0.0001863,2]
[368627013,1751251111518,-1839.7,0.0001863,2]
[368627014,1751251111543,-2986.91,0.0001863,2]
[368627015,1751251111570,-763.25,0.0001863,2]
[368627016,1751251111595,-3298.39,0.0001863,2]
[368627017,1751251111620,-490.0,0.0001863,2]
[368627018,1751251111645,-544.62111036,0.0001863,2]
[368627019,1751251111671,-701.33,0.0001863,2]
[368627020,1751251111696,-842.36063416,0.0001863,2]
[368627024,1751251146044,296.97,0.00013699,2]
[368627026,1751251173596,150.0,0.00017,3]
[368627029,1751251508773,-200.0,0.00017705,7]
[368627030,1751251508798,-1000.0,0.00017742,2]
[368627031,1751251508823,-606.0,0.00017807,2]
[368627032,1751251508847,-155.195,0.00017807,2]
[368627033,1751251508873,-296.73197466,0.00017807,2]
[368627034,1751251508897,-490.0,0.00017808,2]
[368627035,1751251508922,-610.08,0.00017808,2]
[368627036,1751251508947,-490.0,0.00017808,2]
[368627037,1751251508971,-490.0,0.00017808,2]
[368627038,1751251508995,-490.0,0.00017808,2]
[368627039,1751251509019,-772.12,0.00017808,2]
[368627040,1751251509042,-490.0,0.00017808,2]
[368627041,1751251509065,-490.0,0.00017808,2]
[368627042,1751251509089,-874.69,0.00017808,2]
[368627043,1751251509113,-1786.43,0.00017808,2]
[368627044,1751251509137,-490.0,0.00017808,2]
[368627045,1751251509161,-636.04,0.00017808,2]
[368627046,1751251509184,-941.24,0.00017808,2]
[368627047,1751251509208,-2779.23,0.00017808,2]
[368627048,1751251509231,-151.0,0.00017808,2]
[368627049,1751251509255,-151.0,0.00017808,2]
[368627050,1751251509278,-718.91,0.00017808,2]
[368627051,1751251509301,-490.0,0.00017808,2]
[368627052,1751251509327,-1207.24,0.00017808,2]
[368627053,1751251509353,-492.31717178,0.00017808,2]
[368627054,1751251509376,-490.0,0.00017808,2]
[368627055,1751251509400,-855.65,0.00017808,2]
[368627056,1751251509425,-613.2,0.00017808,2]
[368627057,1751251509449,-151.0,0.00017808,2]
[368627058,1751251509473,-151.0,0.00017808,2]
[368627059,1751251509497,-199.361757,0.00017808,2]
[368627060,1751251509520,-490.0,0.00017808,2]
[368627061,1751251509544,-490.0,0.00017808,2]
[368627062,1751251509568,-490.0,0.00017808,2]
[368627063,1751251509591,-490.0,0.00017808,2]
[368627064,1751251509613,-151.391296,0.00017808,2]
[368627065,1751251509638,-151.0,0.00017808,2]
[368627066,1751251509661,-151.0,0.00017808,2]
[368627067,1751251509684,-490.0,0.00017808,2]
[368627068,1751251509707,-490.0,0.00017808,2]
[368627069,1751251509731,-151.0,0.00017808,2]
[368627070,1751251509753,-151.0,0.00017808,2]
[368627071,1751251509777,-169.375602,0.00017808,2]
[368627072,1751251509800,-156.466168,0.00017808,2]
[368627073,1751251509823,-151.0,0.00017808,2]
[368627074,1751251509847,-151.0,0.00017808,2]
[368627075,1751251509870,-206.62666,0.00017808,2]
[368627076,1751251509893,-567.61,0.00017808,2]
[368627077,1751251509916,-490.0,0.00017808,2]
[368627078,1751251509939,-490.0,0.00017808,2]
[368627079,1751251509963,-1858.32,0.00017808,2]
[368627080,1751251509990,-490.0,0.00017808,2]
[368627081,1751251510012,-490.0,0.00017808,2]
[368627082,1751251510035,-490.0,0.00017808,2]
[368627083,1751251510059,-1739.75,0.00017808,2]
[368627084,1751251510081,-729.38,0.00017808,2]
[368627085,1751251510104,-1076.43,0.00017808,2]
[368627086,1751251510128,-490.0,0.00017808,2]
[368627087,1751251510152,-490.0,0.00017808,2]
[368627088,1751251510175,-972.21,0.00017808,2]
[368627089,1751251510200,-490.0,0.00017808,2]
[368627090,1751251510224,-1095.99,0.00017808,2]
[368627091,1751251510248,-1478.53,0.00017808,2]
[368627092,1751251510271,-151.0,0.00017808,2]
[368627093,1751251510295,-151.0,0.00017808,2]
[368627094,1751251510319,-151.0,0.00017808,2]
[368627095,1751251510345,-771.51,0.00017808,2]
[368627096,1751251510371,-1531.37,0.00017808,2]
[368627097,1751251510393,-490.0,0.00017808,2]
[368627098,1751251510419,-490.0,0.00017808,2]
[368627099,1751251510442,-546.08,0.00017808,2]
[368627100,1751251510466,-153.963138,0.00017808,2]
[368627101,1751251510490,-490.0,0.00017808,2]
[368627102,1751251510514,-684.76,0.00017808,2]
[368627103,1751251510537,-490.0,0.00017808,2]
[368627104,1751251510562,-500.0,0.00017808,2]
[368627105,1751251510585,-490.0,0.00017808,2]
[368627106,1751251510611,-5896.95,0.00017808,2]
[368627107,1751251510637,-490.0,0.00017808,2]
[368627108,1751251510662,-636.59,0.00017808,2]
[368627109,1751251510687,-3318.31,0.00017808,2]
[368627110,1751251510711,-1491.42,0.00017808,2]
[368627111,1751251510735,-490.0,0.00017808,2]
[368627112,1751251510761,-1467.24,0.00017808,2]
[368627113,1751251510786,-525.71,0.00017808,2]
[368627114,1751251510810,-7623.73,0.00017808,2]
[368627115,1751251510835,-490.0,0.00017808,2]
[368627116,1751251510860,-491.64349967,0.00017808,2]
[368627117,1751251510885,-490.0,0.00017808,2]
[368627118,1751251510910,-490.0,0.00017808,2]
[368627119,1751251510934,-1225.11,0.00017808,2]
[368627120,1751251510958,-500.0,0.00017808,2]
[368627121,1751251510982,-1086.29,0.00017808,2]
[368627122,1751251511008,-490.0,0.00017808,2]
[368627123,1751251511034,-7537.43,0.00017808,2]
[368627124,1751251511058,-490.0,0.00017808,2]
[368627125,1751251511082,-490.0,0.00017808,2]
[368627126,1751251511106,-490.0,0.00017808,2]
[368627127,1751251511131,-490.0,0.00017808,2]
[368627128,1751251511155,-593.85,0.00017808,2]
[368627129,1751251511179,-490.0,0.00017808,2]
[368627130,1751251511205,-490.0,0.00017808,2]
[368627131,1751251511230,-5280.28,0.00017808,2]
[368627132,1751251511254,-490.0,0.00017808,2]
[368627133,1751251511278,-490.0,0.00017808,2]
[368627134,1751251511302,-490.0,0.00017808,2]
[368627135,1751251511329,-3188.13,0.00017808,2]
[368627136,1751251511353,-1926.03,0.00017808,2]
[368627137,1751251511379,-650.17,0.00017808,2]
[368627138,1751251511405,-1708.59,0.00017808,2]
[368627139,1751251511430,-500.0,0.00017808,2]
[368627140,1751251511456,-6100.01,0.00017808,2]
[368627141,1751251511481,-490.0,0.00017808,2]
[368627142,1751251511505,-490.0,0.00017808,2]
[368627143,1751251511531,-151.0,0.00017808,2]
[368627144,1751251511556,-2778.06,0.00017808,2]
[368627145,1751251511583,-151.0,0.00017808,2]
[368627146,1751251511608,-490.0,0.00017808,2]
[368627147,1751251511633,-151.0,0.00017808,2]
[368627148,1751251511660,-2871.24,0.00017808,2]
[368627149,1751251511686,-490.0,0.00017808,2]
[368627150,1751251511712,-490.0,0.00017808,2]
[368627151,1751251511739,-490.0,0.00017808,2]
[368627152,1751251511766,-490.0,0.00017808,2]
[368627153,1751251511892,-490.0,0.00017808,2]
[368627154,1751251511918,-490.0,0.00017808,2]
[368627155,1751251511943,-940.0,0.00017808,2]
[368627156,1751251511968,-490.0,0.00017808,2]
[368627157,1751251511993,-3171.08,0.00017808,2]
[368627158,1751251512017,-1238.25,0.00017808,2]
[368627159,1751251512040,-985.11,0.00017808,2]
[368627160,1751251512064,-490.0,0.00017808,2]
[368627161,1751251512092,-490.0,0.00017808,2]
[368627162,1751251512116,-490.0,0.00017808,2]
[368627163,1751251512140,-490.0,0.00017808,2]
[368627164,1751251512165,-3872.79,0.00017808,2]
[368627165,1751251512190,-490.0,0.00017808,2]
[368627166,1751251512218,-747.71,0.00017808,2]
[368627167,1751251512243,-490.0,0.00017808,2]
[368627168,1751251512268,-490.0,0.00017808,2]
[368627169,1751251512291,-510.38571339,0.00017808,2]
[368627170,1751251512317,-2922.82,0.00017808,2]
[368627171,1751251512356,-1315.05,0.00017808,2]
[368627172,1751251512385,-490.0,0.00017808,2]
[368627173,1751251512411,-1471.68,0.00017808,2]
[368627174,1751251512436,-490.0,0.00017808,2]
[368627175,1751251512464,-1060.78,0.00017808,2]
[368627176,1751251512490,-639.29,0.00017808,2]
[368627177,1751251512519,-500.0,0.00017808,2]
[368627178,1751251512545,-1889.68,0.00017808,2]
[368627179,1751251512571,-490.0,0.00017808,2]
[368627180,1751251512596,-490.0,0.00017808,2]
[368627181,1751251512622,-490.0,0.00017808,2]
[368627182,1751251512649,-12024.68,0.00017808,2]
[368627183,1751251512674,-490.0,0.00017808,2]
[368627184,1751251512700,-490.0,0.00017808,2]
[368627185,1751251512725,-490.0,0.00017808,2]
[368627186,1751251513204,-490.0,0.00017808,2]
[368627187,1751251513230,-490.0,0.00017808,2]
[368627188,1751251513258,-12500.32,0.00017808,2]
[368627189,1751251513282,-554.61,0.00017808,2]
[368627190,1751251513305,-490.0,0.00017808,2]
[368627191,1751251513332,-511.88,0.00017808,2]
[368627192,1751251513357,-490.0,0.00017808,2]
[368627193,1751251513383,-5728.02,0.00017808,2]
[368627194,1751251513409,-1445.67,0.00017808,2]
[368627195,1751251513435,-500.0,0.00017808,2]
[368627196,1751251513460,-519.99,0.00017808,2]
[368627197,1751251513486,-167.03,0.00017838,2]
[368627198,1751251513512,-158.23769373,0.00017981,2]
[368627199,1751251513537,-594.57644015,0.00017981,2]
[368627200,1751251513563,-799.88354655,0.00017981,2]
[368627201,1751251513592,-2489.00877031,0.00017982,2]
[368627202,1751251513616,-490.0,0.0001808,2]
[368627203,1751251513641,-583.22,0.0001808,2]
[368627204,1751251513666,-490.0,0.0001808,2]
[368627205,1751251513696,-1089.29,0.0001808,2]
[368627206,1751251513722,-490.0,0.00018081,2]
[368627207,1751251513747,-1073.89,0.00018081,2]
[368627208,1751251513773,-490.0,0.00018081,2]
[368627209,1751251513798,-490.0,0.00018081,2]
[368627210,1751251513824,-749.2,0.00018081,2]
[368627211,1751251513849,-899.42,0.00018081,2]
[368627212,1751251513874,-490.0,0.00018081,2]
[368627213,1751251513900,-490.0,0.00018081,2]
[368627214,1751251513926,-490.0,0.00018081,2]
[368627215,1751251513951,-1000.0,0.00018081,2]
[368627216,1751251513975,-643.14,0.00018081,2]
[368627217,1751251514001,-490.0,0.00018081,2]
[368627218,1751251514026,-2692.7,0.00018081,2]
[368627219,1751251514052,-500.0,0.00018081,2]
[368627220,1751251514078,-2344.85,0.00018081,2]
[368627221,1751251514103,-490.0,0.00018081,2]
[368627222,1751251514127,-490.5725155,0.00018081,2]
[368627223,1751251514153,-791.81,0.00018081,2]
[368627224,1751251514178,-490.0,0.00018081,2]
[368627225,1751251514203,-855.1,0.00018081,2]
[368627226,1751251514233,-490.0,0.00018081,2]
[368627227,1751251514259,-490.0,0.00018081,2]
[368627228,1751251514284,-523.46,0.00018081,2]
[368627229,1751251514309,-490.0,0.00018081,2]
[368627230,1751251514335,-490.0,0.00018081,2]
[368627231,1751251514359,-500.0,0.00018081,2]
[368627232,1751251514386,-490.0,0.00018081,2]
[368627233,1751251514412,-1405.42,0.00018081,2]
[368627234,1751251514437,-2366.28,0.00018081,2]
[368627235,1751251514462,-418.92845179,0.00018081,2]
[368627236,1751251514487,-490.0,0.00018081,2]
[368627237,1751251514512,-490.0,0.00018081,2]
[368627238,1751251514538,-3147.78,0.00018081,2]
[368627239,1751251514563,-490.0,0.00018081,2]
[368627240,1751251514588,-490.0,0.00018081,2]
[368627241,1751251514612,-490.0,0.00018081,2]
[368627242,1751251514636,-815.6,0.00018081,2]
[368627243,1751251514661,-492.83201767,0.00018081,2]
[368627244,1751251514686,-688.36,0.00018081,2]
[368627245,1751251514711,-490.0,0.00018081,2]
[368627246,1751251514736,-2592.84,0.00018081,2]
[368627247,1751251514761,-2650.12,0.00018081,2]
[368627248,1751251514786,-490.0,0.00018081,2]
[368627249,1751251514811,-490.0,0.00018081,2]
[368627250,1751251514835,-490.0,0.00018081,2]
[368627251,1751251514862,-490.0,0.00018081,2]
[368627252,1751251514887,-288.1151766,0.00018081,2]
[368627253,1751251514912,-734.05,0.00018081,2]
[368627254,1751251514938,-490.0,0.00018081,2]
[368627255,1751251514962,-901.31,0.00018081,2]
[368627256,1751251514988,-3317.25,0.00018081,2]
[368627257,1751251515013,-490.0,0.00018081,2]
[368627258,1751251515040,-902.0,0.00018081,2]
[368627259,1751251515064,-490.0,0.00018081,2]
[368627260,1751251515089,-1948.88,0.00018081,2]
[368627261,1751251515113,-490.0,0.00018081,2]
[368627262,1751251515138,-490.0,0.00018081,2]
[368627263,1751251515162,-490.0,0.00018081,2]
[368627264,1751251515188,-2604.01,0.00018081,2]
[368627265,1751251515217,-490.0,0.00018081,2]
[368627266,1751251515242,-490.0,0.00018081,2]
[368627267,1751251515277,-1508.0,0.00018081,2]
[368627268,1751251515304,-952.52,0.00018081,2]
[368627269,1751251515330,-490.0,0.00018081,2]
[368627270,1751251515355,-490.0,0.00018081,2]
[368627271,1751251515381,-995.76,0.00018081,2]
[368627272,1751251515407,-490.0,0.00018081,2]
[368627273,1751251515431,-498.19518273,0.00018081,2]
[368627274,1751251515456,-2266.37,0.00018081,2]
[368627275,1751251515480,-490.0,0.00018081,2]
[368627276,1751251515505,-490.0,0.00018081,2]
[368627277,1751251515529,-1406.41,0.00018081,2]
[368627278,1751251515559,-906.85,0.00018081,2]
[368627279,1751251515584,-2287.66,0.00018081,2]
[368627280,1751251515609,-621.54,0.00018081,2]
[368627281,1751251515635,-315.75222447,0.00018081,2]
[368627289,1751251832246,-570.0,0.00017388,2]
[368627290,1751251832256,-30.0,0.00017437,2]
[368627291,1751251832316,-380.49178362,0.00017437,2]
[368627292,1751251832328,-1089.50821638,0.00017437,2]
[368627293,1751251832338,-1570.0,0.00017461,2]
[368627294,1751251832347,-1570.0,0.00017499,2]
[368627295,1751251832355,-1570.0,0.00017625,2]
[368627296,1751251832365,-197.18845433,0.00017708,2]
[368627297,1751251832374,-2612.77703855,0.00017708,2]
[368627298,1751251832384,-5193.47953998,0.00017798,2]
[368627299,1751251832393,-448.56,0.00017798,2]
[368627300,1751251832403,-448.56,0.00017798,2]
[368627302,1751251832412,-448.56,0.00017798,2]
[368627304,1751251832422,-500.0,0.000178,6]
[368627306,1751251832435,-300.0,0.00017806,2]
[368627308,1751251832445,-1200.0,0.00017806,2]
[368627310,1751251832454,-4369.76147175,0.00017807,2]
[368627312,1751251832463,-1367.82,0.00017807,2]
[368627314,1751251832473,-490.0,0.00017807,2]
[368627317,1751251832482,-972.74,0.00017808,2]
[368627320,1751251832492,-490.0,0.00017808,2]
[368627323,1751251832502,-490.0,0.00017808,2]
[368627326,1751251832511,-490.0,0.00017808,2]
[368627329,1751251832521,-960.53,0.00017808,2]
[368627330,1751251832529,-490.0,0.00017808,2]
[368627333,1751251832539,-490.0,0.00017808,2]
[368627336,1751251832548,-2155.68,0.00017808,2]
[368627339,1751251832556,-490.0,0.00017808,2]
[368627342,1751251832566,-490.0,0.00017808,2]
[368627345,1751251832575,-586.03,0.00017808,2]
[368627348,1751251832584,-490.0,0.00017808,2]
[368627351,1751251832594,-490.0,0.00017808,2]
[368627354,1751251832603,-1717.71,0.00017808,2]
[368627357,1751251832612,-486.36,0.00017808,2]
[368627360,1751251832621,-490.0,0.00017808,2]
[368627363,1751251832630,-490.0,0.00017808,2]
[368627366,1751251832639,-1841.2,0.00017808,2]
[368627369,1751251832648,-885.77,0.00017808,2]
[368627372,1751251832658,-2059.3,0.00017808,2]
[368627375,1751251832667,-490.0,0.00017808,2]
[368627378,1751251832676,-490.0,0.00017808,2]
[368627380,1751251832685,-490.0,0.00017808,2]
[368627381,1751251832694,-588.0,0.00017808,2]
[368627384,1751251832704,-490.0,0.00017808,2]
[368627408,1751251832714,-490.0,0.00017808,2]
[368627410,1751251833147,-490.0,0.00017808,2]
[368627412,1751251833157,-490.0,0.00017808,2]
[368627414,1751251833167,-2881.33,0.00017808,2]
[368627416,1751251833176,-1531.76,0.00017808,2]
[368627418,1751251833185,-490.0,0.00017808,2]
[368627420,1751251833196,-2070.57,0.00017808,2]
[368627422,1751251833205,-490.0,0.00017808,2]
[368627424,1751251833214,-490.0,0.00017808,2]
[368627426,1751251833223,-2375.96,0.00017808,2]
[368627428,1751251833232,-490.0,0.00017808,2]
[368627430,1751251833241,-490.0,0.00017808,2]
[368627432,1751251833251,-490.0,0.00017808,2]
[368627434,1751251833260,-490.0,0.00017808,2]
[368627436,1751251833270,-1151.24,0.00017808,2]
[368627438,1751251833279,-490.0,0.00017808,2]
[368627440,1751251833288,-511.53955641,0.00017808,2]
[368627442,1751251833298,-490.0,0.00017808,2]
[368627444,1751251833307,-490.0,0.00017808,2]
[368627446,1751251833317,-2272.0,0.00017808,2]
[368627448,1751251833326,-3064.17,0.00017808,2]
[368627450,1751251833336,-1124.75,0.00017808,2]
[368627452,1751251833345,-1093.27,0.00017808,2]
[368627455,1751251833355,-490.0,0.00017808,2]
[368627457,1751251833364,-341.14468733,0.00017808,2]
[368627459,1751251833374,-490.0,0.00017808,2]
[368627461,1751251833383,-617.76,0.00017808,2]
[368627463,1751251833393,-1202.45,0.00017808,2]
[368627464,1751251833403,-490.0,0.00017808,2]
[368627466,1751251833412,-1011.98,0.00017808,2]
[368627468,1751251833421,-6558.33579929,0.00017808,2]